bitfinex-derivatives/quotes_SOLF0:USTF0_20250514
["timestamp","ask_amount","ask_price","bid_price","bid_amount"]
[1747226918597,5.5314,180.76,180.66,58.8]
[1747226918905,58.8,180.77,180.71,5.5327]
[1747226919096,5.5323,180.73,180.65,62.397]
[1747226919296,5.5323,180.73,180.65,121.197]
[1747226921000,5.5323,180.73,180.69,5.5332]
[1747226921207,58.8,180.77,180.65,121.197]
[1747226921406,6.17945891,180.74,180.65,58.78]
[1747226921708,64.97945891,180.74,180.65,58.78]
[1747226922009,5.5336,180.69,180.65,58.78]
[1747226922209,58.8,180.71,180.65,58.78]
[1747226922606,5.5343,180.67,180.61,60.6969]
[1747226923209,58.8,180.71,180.63,5.5352]
[1747226923415,58.8,180.71,180.61,60.6969]
[1747226924007,64.97945891,180.71,180.61,60.6969]
[1747226924309,64.97945891,180.71,180.63,5.5352]
[1747226924811,5.5343,180.67,180.64,5.5349]
[1747226925011,64.97945891,180.71,180.64,5.5349]
[1747226925311,5.534,180.68,180.64,5.5349]
[1747226926106,64.97945891,180.71,180.64,5.5349]
[1747226926308,5.5341,180.67,180.64,5.5349]
[1747226926607,64.97945891,180.71,180.61,60.6969]
[1747226926810,5.5329,180.71,180.61,60.6969]
[1747226927012,58.82,180.7,180.68,5.5337]
[1747226927414,1.7546,180.73,180.61,66.87635891]
[1747226927712,1.7546,180.73,180.7,5.533]
[1747226927713,58.82,180.73,180.7,5.533]
[1747226927909,58.82,180.73,180.66,58.8]
[1747226928913,58.82,180.76,180.66,58.8]
[1747226929106,58.82,180.76,180.67,3.6047]
[1747226929311,58.82,180.76,180.74,5.5317]
[1747226930013,58.82,180.76,180.68,1.7548]
[1747226930513,5.5323,180.73,180.7,5.533]
[1747226930910,58.82,180.76,180.69,5.5334]
[1747226931510,5.5325,180.73,180.69,5.5334]
[1747226931713,58.82,180.76,180.69,5.5334]
[1747226932014,5.5326,180.72,180.69,5.5334]
[1747226932411,58.82,180.76,180.68,5.5337]
[1747226932812,6.17945891,180.74,180.64,58.8]
[1747226933117,58.8,180.73,180.64,58.8]
[1747226933310,5.5337,180.69,180.61,5.3199]
[1747226933510,5.5337,180.69,180.59,6.17945891]
[1747226933511,58.8,180.7,180.56,6.17945891]
[1747226933716,58.8,180.7,180.59,58.8]
[1747226933917,58.8,180.7,180.63,5.5351]
[1747226934717,58.8,180.7,180.62,5.5355]
[1747226934920,60.6856,180.7,180.59,58.8]
[1747226935215,60.6856,180.7,180.61,5.5358]
[1747226935415,6.17945891,180.68,180.59,58.8]
[1747226935615,64.99945891,180.68,180.59,58.8]
[1747226935819,64.99945891,180.68,180.6,5.536]
[1747226936011,64.99945891,180.68,180.55,537.0]
[1747226936012,6.17945891,180.65,180.55,537.0]
[1747226936208,59.76,180.64,180.51,60.7386]
[1747226936410,6.17945891,180.62,180.55,5.5375]
[1747226936616,5.5364,180.6,180.51,60.7386]
[1747226936811,60.18,180.59,180.56,5.5374]
[1747226937922,65.7166,180.59,180.55,5.5377]
[1747226938220,60.18,180.59,180.51,60.7386]
[1747226938824,1.9011,180.64,180.51,60.7386]
[1747226939025,60.1,180.63,180.52,60.1]
[1747226939922,65.6353,180.63,180.59,5.5365]
[1747226940122,60.1,180.63,180.52,60.1]
[1747226941028,60.1,180.63,180.59,5.5363]
[1747226941218,1.8574,180.67,180.56,61.42]
[1747226941418,62.04,180.66,180.56,61.42]
[1747226941619,62.04,180.66,180.6,5.536]
[1747226941923,62.04,180.66,180.56,61.42]
[1747226942223,5.5355,180.63,180.59,5.5365]
[1747226942626,62.04,180.66,180.56,61.42]
[1747226942828,5.5358,180.62,180.58,5.5366]
[1747226943421,5.5359,180.61,180.58,5.5366]
[1747226943620,62.04,180.66,180.56,61.42]
[1747226943925,9.94105677,180.64,180.52,61.42]
[1747226944225,1.8744,180.63,180.47,1.7961]
[1747226944428,61.42,180.62,180.49,61.42]
[1747226944728,5.538,180.55,180.51,5.5388]
[1747226945330,5.5381,180.54,180.5,5.5392]
[1747226945529,62.68,180.56,180.49,61.42]
[1747226947327,124.1,180.56,180.43,61.42]
[1747226947634,5.5393,180.5,180.46,5.5404]
[1747226947823,1.7532,180.55,180.46,5.5404]
[1747226948025,3.5188,180.55,180.46,5.5404]
[1747226948226,5.5395,180.5,180.46,5.5404]
[1747226948930,63.64,180.51,180.43,61.42]
[1747226949631,125.08,180.51,180.4,61.44]
[1747226951632,1.9077,180.5,180.4,61.44]
[1747226951829,5.5414,180.44,180.4,66.9823]
[1747226952034,63.68,180.45,180.4,66.9823]
[1747226952431,5.5413,180.44,180.4,66.9823]
[1747226952630,63.68,180.45,180.4,61.44]
[1747226952833,63.68,180.45,180.38,5.5427]
[1747226953131,63.68,180.45,180.37,5.5432]
[1747226953326,63.68,180.45,180.36,539.98]
[1747226953527,5.5426,180.4,180.36,539.98]
[1747226953730,63.68,180.45,180.36,61.46]
[1747226953927,65.527,180.45,180.36,61.46]
[1747226954128,5.5426,180.4,180.36,61.46]
[1747226954429,5.5426,180.4,180.36,67.0033]
[1747226954731,63.9,180.4,180.33,1.7717]
[1747226955026,63.9,180.4,180.32,61.46]
[1747226955228,1.847,180.45,180.32,61.46]
[1747226955433,64.54,180.44,180.32,61.46]
[1747226956334,1.847,180.45,180.32,61.46]
[1747226956532,65.02,180.45,180.32,61.46]
[1747226956729,3.749,180.53,180.33,9.94105677]
[1747226956925,64.52,180.56,180.37,9.94105677]
[1747226957131,65.46,180.56,180.41,9.94105677]
[1747226957328,65.46,180.56,180.42,64.52]
[1747226957530,65.46,180.56,180.43,65.5]
[1747226957924,5.5378,180.55,180.48,5.5396]
[1747226958128,65.54,180.65,180.49,130.04]
[1747226958427,5.5684,180.64,180.5,74.44105677]
[1747226958639,65.54,180.66,180.54,9.94105677]
[1747226958934,65.78,180.68,180.55,132.024]
[1747226959322,65.78,180.68,180.56,1.8677]
[1747226959531,65.78,180.68,180.61,5.5357]
[1747226960130,5.5345,180.66,180.58,5.5366]
[1747226960630,5.5347,180.65,180.58,5.5366]
[1747226960936,65.78,180.68,180.56,1.8677]
[1747226961138,9.94105677,180.66,180.55,64.5]
[1747226961330,64.5,180.65,180.55,64.5]
[1747226961831,1.833,180.64,180.55,64.5]
[1747226962034,65.7,180.63,180.55,64.5]
[1747226962331,69.4822,180.63,180.55,64.5]
[1747226963438,65.6,180.63,180.55,64.5]
[1747226963929,71.1356,180.63,180.58,5.5367]
[1747226964134,65.6,180.63,180.51,64.5]
[1747226964639,5.5367,180.59,180.54,5.538]
[1747226965135,5.5363,180.6,180.55,5.5376]
[1747226965636,65.6,180.63,180.55,5.5376]
[1747226965834,5.5366,180.59,180.54,5.538]
[1747226966135,65.6,180.63,180.51,64.5]
[1747226966337,1.732,180.62,180.51,64.5]
[1747226966538,1.732,180.62,180.53,5.5383]
[1747226967234,1.732,180.62,180.51,64.5]
[1747226967441,66.2376,180.61,180.51,64.5]
[1747226967739,66.2376,180.61,180.51,70.0387]
[1747226967936,66.2376,180.61,180.51,64.5]
[1747226968135,5.5388,180.52,180.47,70.04]
[1747226968335,67.74,180.55,180.47,70.04]
[1747226968532,67.74,180.55,180.47,64.5]
[1747226968731,5.5396,180.5,180.47,64.5]
[1747226968935,67.74,180.55,180.47,64.5]
[1747226969142,5.5387,180.52,180.47,64.5]
[1747226969341,67.74,180.55,180.47,64.5]
[1747226969842,5.5388,180.52,180.47,64.5]
[1747226970041,67.74,180.55,180.42,67.72]
[1747226970242,5.5398,180.49,180.42,67.72]
[1747226970435,73.3598,180.49,180.42,67.72]
[1747226970746,73.3598,180.49,180.44,5.5409]
[1747226971241,5.5403,180.47,180.42,73.2617]
[1747226971742,67.82,180.49,180.42,67.72]
[1747226972244,11.83345677,180.53,180.42,67.72]
[1747226972637,1.8924,180.53,180.42,67.72]
[1747226972837,67.64,180.52,180.42,67.72]
[1747226973545,73.1787,180.52,180.46,5.5402]
[1747226973841,73.1787,180.52,180.42,67.72]
[1747226974045,73.1787,180.52,180.47,5.54]
[1747226974234,73.1787,180.52,180.42,67.72]
[1747226974435,67.64,180.52,180.42,67.72]
[1747226974646,1.8924,180.53,180.42,67.72]
[1747226974851,68.26,180.55,180.42,67.72]
[1747226975037,68.26,180.55,180.43,3.8019]
[1747226976847,68.26,180.55,180.51,5.5387]
[1747226977047,68.26,180.55,180.48,67.74]
[1747226980151,68.26,180.55,180.53,5.5383]
[1747226980552,68.26,180.55,180.48,67.74]
[1747226981051,3.6028,180.6,180.48,67.74]
[1747226981252,67.98,180.59,180.48,67.74]
[1747226981551,5.5372,180.57,180.53,5.5382]
[1747226981754,5.5372,180.57,180.48,67.74]
[1747226982051,67.98,180.59,180.48,67.74]
[1747226982254,5.5369,180.58,180.48,67.74]
[1747226982953,5.5369,180.58,180.54,5.538]
[1747226983552,67.98,180.59,180.48,67.74]
[1747226984857,5.5378,180.55,180.51,5.5387]
[1747226985354,5.5381,180.54,180.5,5.5392]
[1747226985854,67.98,180.59,180.48,67.74]
[1747226986045,67.98,180.59,180.51,5.539]
[1747226987253,67.98,180.59,180.48,67.74]
[1747226987754,5.5374,180.57,180.53,5.5382]
[1747226987953,67.98,180.59,180.48,67.74]
[1747226988858,5.5375,180.56,180.48,67.74]
[1747226989558,5.5373,180.57,180.48,67.74]
[1747226990058,5.5373,180.57,180.53,5.5382]
[1747226990354,67.98,180.59,180.48,67.74]
[1747226990962,5.5375,180.56,180.52,5.5387]
[1747226992361,5.5375,180.56,180.53,5.5383]
[1747226992652,5.5378,180.55,180.48,67.74]
[1747226993053,5.5378,180.55,180.52,5.5387]
[1747226993458,5.5377,180.56,180.52,5.5387]
[1747226993660,5.5377,180.56,180.53,5.5383]
[1747226993861,67.98,180.59,180.53,5.5383]
[1747226994062,5.5368,180.58,180.48,67.74]
[1747226994557,73.5167,180.59,180.48,67.74]
[1747226994961,5.5367,180.59,180.48,67.74]
[1747226995455,76.1191,180.6,180.48,67.74]
[1747226995655,70.5828,180.6,180.48,67.74]
[1747226995863,68.781,180.6,180.49,1.8607]
[1747226996359,5.5365,180.59,180.55,5.5375]
[1747226996756,5.5365,180.59,180.56,5.5374]
[1747226998267,5.5363,180.6,180.57,5.537]
[1747226998467,67.74,180.61,180.57,5.537]
[1747226998654,5.5361,180.61,180.57,5.537]
[1747226998861,3.5381,180.65,180.53,67.74]
[1747226999062,70.2781,180.65,180.53,67.74]
[1747226999457,1.7621,180.65,180.53,67.74]
[1747226999965,7.3956,180.66,180.62,5.5355]
[1747227000166,1.861,180.66,180.59,66.72]
[1747227000560,5.5348,180.65,180.61,5.5357]
[1747227001066,1.861,180.66,180.59,66.72]
[1747227001863,5.5356,180.62,180.59,66.72]
[1747227002063,1.861,180.66,180.59,66.72]
[1747227002264,1.861,180.66,180.54,66.72]
[1747227002463,5.5369,180.58,180.54,72.258]
[1747227002666,66.46,180.61,180.54,66.72]
[1747227003067,5.5367,180.59,180.55,5.5375]
[1747227003473,66.46,180.61,180.54,66.72]
[1747227003674,5.5374,180.57,180.54,66.72]
[1747227004974,5.5374,180.57,180.54,72.258]
[1747227005575,5.5378,180.55,180.54,66.72]
[1747227005775,66.46,180.61,180.51,478.66]
[1747227005979,66.46,180.61,180.5,66.7]
[1747227006171,5.5381,180.54,180.51,5.5389]
[1747227006370,5.5381,180.54,180.5,66.7]
[1747227006678,5.5378,180.55,180.52,5.5385]
[1747227006867,66.7,180.62,180.5,66.7]
[1747227007065,9.94105677,180.6,180.5,66.7]
[1747227007268,5.5396,180.49,180.46,66.7]
[1747227007673,5.5396,180.49,180.42,545.3]
[1747227008073,5.5394,180.5,180.46,5.5404]
[1747227008277,66.26,180.53,180.46,5.5404]
[1747227008775,66.26,180.53,180.42,545.3]
[1747227009180,71.7986,180.53,180.48,5.5398]
[1747227009373,66.26,180.53,180.47,66.72]
[1747227009685,1.8704,180.59,180.47,66.72]
[1747227010372,5.5375,180.56,180.47,66.72]
[1747227010685,1.8704,180.59,180.47,66.72]
[1747227011075,66.12,180.61,180.48,15.46775677]
[1747227011271,66.12,180.61,180.57,5.5369]
[1747227011477,66.12,180.61,180.55,66.72]
[1747227012181,71.6561,180.61,180.56,5.5371]
[1747227012483,66.12,180.61,180.55,66.72]
[1747227012677,66.12,180.61,180.57,5.537]
[1747227013077,66.12,180.61,180.55,66.72]
[1747227013078,5.537,180.58,180.55,66.72]
[1747227013278,66.12,180.61,180.55,66.72]
[1747227013480,66.12,180.61,180.51,66.72]
[1747227013883,5.537,180.58,180.54,5.538]
[1747227014580,5.5372,180.57,180.53,5.5383]
[1747227014986,66.12,180.61,180.51,66.72]
[1747227015179,66.12,180.61,180.53,5.5383]
[1747227015481,66.12,180.61,180.51,66.72]
[1747227015684,5.5368,180.58,180.54,5.538]
[1747227015986,66.12,180.61,180.54,5.538]
[1747227016586,66.12,180.61,180.55,5.5377]
[1747227016887,66.12,180.61,180.51,66.72]
[1747227017089,66.12,180.61,180.54,5.538]
[1747227017387,5.537,180.58,180.54,5.538]
[1747227017688,66.12,180.61,180.54,5.538]
[1747227018087,66.12,180.61,180.51,66.72]
[1747227018388,364.0,180.62,180.51,132.34]
[1747227018588,364.0,180.62,180.59,5.5363]
[1747227018790,65.62,180.63,180.51,132.34]
[1747227018990,65.62,180.63,180.52,3.5239]
[1747227021892,65.62,180.63,180.61,5.5359]
[1747227022293,65.62,180.63,180.6,5.5362]
[1747227022594,65.62,180.63,180.57,66.72]
[1747227022789,71.1555,180.63,180.57,66.72]
[1747227022991,65.62,180.63,180.57,66.72]
[1747227023286,68.6078,180.65,180.57,66.72]
[1747227023691,1.8878,180.65,180.57,66.72]
[1747227023894,1.7482,180.69,180.57,66.72]
[1747227024099,3.6857,180.73,180.57,68.46]
[1747227024393,1.7482,180.76,180.6,9.94105677]
[1747227024692,364.0,180.77,180.64,9.94105677]
[1747227024889,364.0,180.77,180.65,66.7]
[1747227025086,364.0,180.77,180.66,65.84]
[1747227025283,1.8941,180.79,180.66,67.58]
[1747227025891,5.5316,180.76,180.71,5.5328]
[1747227026091,1.8941,180.79,180.66,67.58]
[1747227026594,5.5321,180.74,180.69,5.5332]
[1747227026790,1.8941,180.79,180.69,5.5332]
[1747227027294,5.5321,180.74,180.69,5.5332]
[1747227027788,5.5321,180.74,180.7,5.5331]
[1747227028294,1.8941,180.79,180.66,65.84]
[1747227028494,1.8941,180.79,180.65,66.7]
[1747227028695,1.8941,180.79,180.65,132.28]
[1747227029194,5.5324,180.73,180.68,5.5337]
[1747227030095,5.5326,180.72,180.67,5.5341]
[1747227030295,65.54,180.75,180.65,132.28]
[1747227030596,5.5325,180.73,180.68,5.5335]
[1747227031896,5.5326,180.72,180.68,5.5335]
[1747227032594,65.54,180.75,180.69,5.5334]
[1747227032892,65.54,180.75,180.65,132.28]
[1747227032893,5.5325,180.73,180.68,5.5337]
[1747227033093,65.54,180.75,180.68,5.5337]
[1747227033395,65.54,180.75,180.65,66.7]
[1747227033596,65.54,180.75,180.65,72.2347]
[1747227033997,5.5338,180.68,180.65,66.7]
[1747227034296,65.54,180.75,180.65,66.7]
[1747227034496,5.5331,180.71,180.66,5.5342]
[1747227034899,65.54,180.75,180.65,66.7]
[1747227035100,5.5335,180.69,180.65,72.2346]
[1747227035497,65.54,180.75,180.65,66.7]
[1747227035699,65.54,180.75,180.65,72.2344]
[1747227035896,65.54,180.75,180.65,66.7]
[1747227036201,5.5333,180.7,180.66,5.5342]
[1747227036499,65.54,180.75,180.65,66.7]
[1747227036697,364.0,180.76,180.65,66.7]
[1747227036894,5.5319,180.74,180.65,131.8]
[1747227037201,65.1,180.75,180.65,131.8]
[1747227037401,5.5325,180.73,180.69,5.5334]
[1747227040501,5.532,180.74,180.7,5.5331]
[1747227041102,65.02,180.75,180.65,131.8]
[1747227041305,5.5325,180.73,180.69,5.5333]
[1747227041603,65.02,180.75,180.65,131.8]
[1747227044602,5.5329,180.71,180.67,5.5338]
[1747227044803,65.02,180.75,180.65,66.7]
[1747227045105,65.02,180.75,180.65,72.2345]
[1747227045301,65.02,180.75,180.65,66.7]
[1747227047406,5.5324,180.73,180.65,66.7]
[1747227047605,65.02,180.75,180.65,66.7]
[1747227048706,70.5518,180.75,180.65,66.7]
[1747227049112,65.02,180.75,180.64,478.58]
[1747227049409,65.02,180.75,180.65,129.82]
[1747227049910,129.78,180.77,180.65,129.82]
[1747227050211,1.9191,180.78,180.66,1.7727]
[1747227050411,5.5313,180.77,180.73,5.532]
[1747227050909,1.9191,180.78,180.71,65.52]
[1747227051308,66.0741,180.79,180.71,65.52]
[1747227051705,66.0741,180.79,180.74,5.5317]
[1747227052109,66.0741,180.79,180.71,65.52]
[1747227052311,5.5308,180.78,180.75,5.5316]
[1747227052511,66.0741,180.79,180.71,65.52]
[1747227052912,1.8941,180.79,180.71,65.52]
[1747227053113,66.2941,180.79,180.71,65.52]
[1747227053313,1.8941,180.79,180.71,65.52]
[1747227053514,1.8941,180.79,180.74,5.5319]
[1747227054313,5.531,180.78,180.74,5.5319]
[1747227055314,1.8941,180.79,180.75,5.5315]
[1747227055917,7.4246,180.79,180.75,5.5315]
[1747227056216,1.8941,180.79,180.74,5.5318]
[1747227056413,1.8941,180.79,180.71,65.52]
[1747227056616,5.5312,180.77,180.71,65.52]
[1747227056818,64.36,180.8,180.75,5.5316]
[1747227057518,5.5306,180.79,180.75,5.5316]
[1747227058218,5.5307,180.78,180.74,5.5319]
[1747227059422,5.5307,180.78,180.71,65.52]
[1747227059818,5.5305,180.79,180.71,65.52]
[1747227060115,5.5305,180.79,180.75,5.5314]
[1747227061321,5.5307,180.78,180.75,5.5314]
[1747227061521,5.5307,180.78,180.74,5.5319]
[1747227061717,131.7482,180.81,180.71,65.52]
[1747227062620,5.5315,180.76,180.72,5.5324]
[1747227063119,5.5315,180.76,180.72,5.5325]
[1747227063522,6.19948186,180.8,180.71,65.52]
[1747227064218,5.5321,180.74,180.71,65.52]
[1747227064417,5.5321,180.74,180.71,71.0526]
[1747227064625,5.5317,180.75,180.71,65.52]
[1747227064923,5.5317,180.75,180.72,5.5324]
[1747227065324,5.532,180.74,180.71,65.52]
[1747227065623,64.32,180.76,180.71,65.52]
[1747227066423,5.5318,180.75,180.71,65.52]
[1747227066722,64.32,180.76,180.72,5.5324]
[1747227066915,69.8515,180.76,180.72,5.5324]
[1747227067120,64.32,180.76,180.72,5.5324]
[1747227067721,69.8514,180.76,180.72,5.5324]
[1747227068026,64.32,180.76,180.71,65.52]
[1747227068228,64.1,180.8,180.71,65.52]
[1747227068418,5.5306,180.79,180.75,5.5314]
[1747227069229,5.5308,180.78,180.75,5.5314]
[1747227069527,70.29948186,180.8,180.71,65.52]
[1747227070324,6.19948186,180.77,180.67,64.5]
[1747227070531,3.7356,180.76,180.67,64.5]
[1747227070823,6.19948186,180.74,180.67,64.5]
[1747227071132,1.7869,180.73,180.66,5.5344]
[1747227071428,1.7869,180.73,180.63,64.5]
[1747227072435,5.534,180.68,180.65,5.5346]
[1747227072933,69.4536,180.69,180.66,5.5342]
[1747227073332,63.92,180.69,180.63,64.5]
[1747227073531,63.92,180.69,180.65,5.5346]
[1747227073532,5.534,180.68,180.65,5.5346]
[1747227075530,63.92,180.69,180.63,64.5]
[1747227075939,5.5354,180.63,180.59,70.0564]
[1747227076134,6.19948186,180.67,180.59,64.52]
[1747227076335,1.7337,180.66,180.59,64.52]
[1747227076535,5.5357,180.62,180.59,64.52]
[1747227076836,63.72,180.64,180.59,64.52]
[1747227077333,63.72,180.64,180.59,70.0565]
[1747227077538,63.72,180.64,180.59,64.52]
[1747227077931,5.5356,180.63,180.6,5.5361]
[1747227078236,63.72,180.64,180.59,64.52]
[1747227078636,1.8587,180.68,180.59,64.52]
[1747227079139,5.5346,180.66,180.62,5.5355]
[1747227079340,1.8587,180.68,180.59,64.52]
[1747227079538,5.5357,180.62,180.59,64.52]
[1747227080241,5.5361,180.61,180.59,64.52]
[1747227081145,63.62,180.64,180.59,64.52]
[1747227081343,63.62,180.64,180.55,542.66]
[1747227081644,5.5365,180.6,180.56,5.5374]
[1747227082246,69.81948186,180.64,180.55,64.52]
[1747227082846,5.537,180.58,180.51,64.52]
[1747227083343,63.5,180.59,180.51,64.52]
[1747227083742,63.5,180.59,180.52,5.5386]
[1747227084145,5.5377,180.56,180.51,64.52]
[1747227084346,63.5,180.59,180.51,64.52]
[1747227084541,63.34,180.59,180.51,64.52]
[1747227084845,63.34,180.59,180.56,5.5373]
[1747227085045,63.34,180.59,180.51,64.52]
[1747227085546,68.8766,180.59,180.55,5.5374]
[1747227085741,68.8766,180.59,180.51,64.52]
[1747227085945,63.34,180.59,180.51,64.52]
[1747227087747,63.34,180.59,180.56,5.5372]
[1747227087943,63.34,180.59,180.51,64.52]
[1747227088845,63.34,180.59,180.57,5.5371]
[1747227089043,63.34,180.59,180.51,64.52]
[1747227089445,63.34,180.59,180.56,5.5374]
[1747227089847,63.34,180.59,180.51,64.52]
[1747227090049,63.34,180.59,180.47,5.5275]
[1747227090249,63.34,180.59,180.5,63.12]
[1747227090445,1.9155,180.58,180.5,63.12]
[1747227091453,5.5377,180.56,180.52,5.5385]
[1747227092053,5.5378,180.55,180.51,5.5389]
[1747227092353,1.9155,180.58,180.5,63.12]
[1747227092755,5.538,180.55,180.51,5.5387]
[1747227092951,1.9155,180.58,180.51,5.5387]
[1747227093955,1.9155,180.58,180.5,63.12]
[1747227094555,62.76,180.59,180.5,63.12]
[1747227095149,62.76,180.59,180.5,125.86]
[1747227095656,3.7575,180.61,180.5,125.86]
[1747227095954,62.74,180.6,180.5,125.86]
[1747227097359,62.74,180.6,180.51,6.19948186]
[1747227097658,1.7741,180.64,180.51,6.19948186]
[1747227097857,62.6,180.63,180.54,6.19948186]
[1747227098058,62.6,180.63,180.55,63.14]
[1747227098259,62.6,180.63,180.55,125.76]
[1747227098658,62.6,180.63,180.6,5.5361]
[1747227099157,62.6,180.63,180.61,5.5357]
[1747227100556,62.6,180.63,180.59,5.5363]
[1747227100757,62.6,180.63,180.55,125.76]
[1747227101462,62.6,180.63,180.6,5.5361]
[1747227101761,62.6,180.63,180.55,125.76]
[1747227102261,62.6,180.63,180.62,5.5356]
[1747227102664,131.2743,180.67,180.56,8.00388186]
[1747227102960,125.74,180.67,180.64,5.5349]
[1747227103663,11.1045,180.69,180.65,5.5346]
[1747227104060,62.52,180.68,180.65,5.5346]
[1747227104258,3.6532,180.69,180.6,63.12]
[1747227104458,64.304,180.69,180.6,63.12]
[1747227104962,64.304,180.69,180.65,5.5344]
[1747227105765,64.304,180.69,180.64,5.5349]
[1747227106671,5.5338,180.68,180.64,5.5349]
[1747227107270,69.8376,180.69,180.65,5.5346]
[1747227107468,69.8376,180.69,180.6,63.12]
[1747227107960,64.304,180.69,180.6,63.12]
[1747227108355,1.8406,180.68,180.6,63.12]
[1747227108867,1.8406,180.68,180.62,5.5354]
[1747227109066,1.8406,180.68,180.6,63.12]
[1747227109468,1.8406,180.68,180.6,68.656]
[1747227109671,1.8406,180.68,180.6,63.12]
[1747227110169,5.5346,180.66,180.63,5.5351]
[1747227110370,1.8406,180.68,180.63,5.5351]
[1747227110670,5.5343,180.67,180.64,5.5349]
[1747227110965,1.8406,180.68,180.62,5.5355]
[1747227111169,1.8406,180.68,180.6,63.12]
[1747227111464,5.5347,180.65,180.6,63.12]
[1747227111766,1.8406,180.68,180.63,5.5353]
[1747227111966,1.8406,180.68,180.6,63.12]
[1747227112672,1.8406,180.68,180.64,5.5349]
[1747227113070,5.5343,180.67,180.64,5.5349]
[1747227113270,1.8406,180.68,180.64,5.5349]
[1747227113871,5.5344,180.66,180.62,5.5354]
[1747227114061,5.5344,180.66,180.6,63.12]
[1747227114261,1.8406,180.68,180.64,5.535]
[1747227114573,1.8406,180.68,180.6,63.12]
[1747227114969,5.5343,180.67,180.6,63.12]
[1747227115471,5.5343,180.67,180.63,5.535]
[1747227116271,5.5343,180.67,180.64,5.5349]
[1747227116572,428.304,180.69,180.6,63.12]
[1747227117374,5.5342,180.67,180.63,5.5351]
[1747227117570,428.304,180.69,180.6,63.12]
[1747227117976,5.5346,180.66,180.62,5.5354]
[1747227118275,5.5346,180.66,180.6,63.12]
[1747227119375,5.5342,180.67,180.6,63.12]
[1747227119976,5.5342,180.67,180.63,5.5351]
[1747227120678,5.5338,180.68,180.6,63.12]
[1747227120881,364.0,180.69,180.61,61.44]
[1747227121080,364.0,180.69,180.63,6.19948186]
[1747227121380,61.44,180.76,180.66,6.19948186]
[1747227121671,61.44,180.76,180.67,122.9]
[1747227121875,61.44,180.8,180.69,6.19948186]
[1747227122372,365.8747,180.81,180.7,3.5413]
[1747227122568,365.8747,180.81,180.72,6.19948186]
[1747227122569,364.0,180.81,180.72,6.19948186]
[1747227122771,68.7551,180.84,180.8,5.5301]
[1747227122979,63.2262,180.84,180.78,61.46]
[1747227124077,63.2262,180.84,180.7,3.5413]
[1747227124279,6.19948186,180.83,180.71,61.44]
[1747227124469,5.5312,180.77,180.73,5.5322]